Workbook

Sheet Plan1
A2: Bank | B2: 100
A3: Medium Odd | B3: 3.5 | D3: Run # | E3: stake | F3: loss | G3: Bank | H3: If I Win
A4: amount to win | B4: 0.5 | D4: 1 | E4: =$B$4/($B$3-1) -> 0.2 | F4: =-E4 -> -0.2 | G4: =$B$2+F4 -> 99.8 | H4: =$B$2+F4+(E4*$B$3) -> 100.5
D5: =D4+1 -> 2 | E5: =($B$4-F4)/($B$3-1) -> 0.28 | F5: =F4-E5 -> -0.48 | G5: =G4-E5 -> 99.52 | H5: =$B$2+F5+(E5*$B$3) -> 100.5
D6: =D5+1 -> 3 | E6: =($B$4-F5)/($B$3-1) -> 0.392 | F6: =F5-E6 -> -0.872 | G6: =G5-E6 -> 99.128 | H6: 100.5
D7: 4 | E7: 0.5488 | F7: -1.4208 | G7: 98.5792 | H7: 100.5
D8: 5 | E8: 0.76832 | F8: -2.18912 | G8: 97.81088 | H8: 100.5
D9: 6 | E9: 1.075648 | F9: -3.264768 | G9: 96.735232 | H9: 100.5
D10: 7 | E10: 1.5059072 | F10: -4.7706752 | G10: 95.2293248 | H10: 100.5
D11: 8 | E11: 2.10827008 | F11: -6.87894528 | G11: 93.12105472 | H11: 100.5
D12: 9 | E12: 2.951578112 | F12: -9.830523392 | G12: 90.16947661 | H12: 100.5
D13: 10 | E13: 4.132209357 | F13: -13.96273275 | G13: 86.03726725 | H13: 100.5
D14: 11 | E14: 5.7850931 | F14: -19.74782585 | G14: 80.25217415 | H14: 100.5
D15: 12 | E15: 8.099130339 | F15: -27.84695619 | G15: 72.15304381 | H15: 100.5
D16: 13 | E16: 11.33878248 | F16: -39.18573866 | G16: 60.81426134 | H16: 100.5
D17: 14 | E17: 15.87429547 | F17: -55.06003413 | G17: 44.93996587 | H17: 100.5
D18: 15 | E18: 22.22401365 | F18: -77.28404778 | G18: 22.71595222 | H18: 100.5
D19: 16 | E19: 31.11361911 | F19: -108.3976669 | G19: -8.39766689 | H19: 100.5
D20: 17 | E20: 43.55906676 | F20: -151.9567336 | G20: -51.95673365 | H20: 100.5
D21: 18 | E21: 60.98269346 | F21: -212.9394271 | G21: -112.9394271 | H21: 100.5
D22: 19 | E22: 85.37577084 | F22: -298.3151979 | G22: -198.3151979 | H22: 100.5
D23: 20 | E23: 119.5260792 | F23: -417.8412771 | G23: -317.8412771 | H23: 100.5
D24: 21 | E24: 167.3365109 | F24: -585.177788 | G24: -485.177788 | H24: 100.5
D25: 22 | E25: 234.2711152 | F25: -819.4489032 | G25: -719.4489032 | H25: 100.5
D26: 23 | E26: 327.9795613 | F26: -1147.428464 | G26: -1047.428464 | H26: 100.5
D27: 24 | E27: 459.1713858 | F27: -1606.59985 | G27: -1506.59985 | H27: 100.5
D28: =D27+1 -> 25 | E28: 642.8399401 | F28: =F27-E28 -> -2249.43979 | G28: -2149.43979 | H28: =$B$2+F28+(E28*$B$3) -> 100.5
D29: 26 | E29: 899.9759161 | F29: -3149.415706 | G29: -3049.415706 | H29: 100.5
D30: 27 | E30: 1259.966283 | F30: -4409.381989 | G30: -4309.381989 | H30: 100.5
D31: 28 | E31: 1763.952796 | F31: -6173.334785 | G31: -6073.334785 | H31: 100.5
D32: 29 | E32: 2469.533914 | F32: -8642.868698 | G32: -8542.868698 | H32: 100.5
D33: 30 | E33: 3457.347479 | F33: -12100.21618 | G33: -12000.21618 | H33: 100.5
D34: 31 | E34: 4840.286471 | F34: -16940.50265 | G34: -16840.50265 | H34: 100.5
D35: 32 | E35: 6776.40106 | F35: -23716.90371 | G35: -23616.90371 | H35: 100.5
D36: 33 | E36: 9486.961483 | F36: -33203.86519 | G36: -33103.86519 | H36: 100.5
D37: 34 | E37: 13281.74608 | F37: -46485.61127 | G37: -46385.61127 | H37: 100.5
D38: 35 | E38: 18594.44451 | F38: -65080.05578 | G38: -64980.05578 | H38: 100.5
D39: 36 | E39: 26032.22231 | F39: -91112.27809 | G39: -91012.27809 | H39: 100.5
D40: 37 | E40: 36445.11123 | F40: -127557.3893 | G40: -127457.3893 | H40: 100.5
D41: 38 | E41: 51023.15573 | F41: -178580.545 | G41: -178480.545 | H41: 100.5
D42: 39 | E42: 71432.41802 | F42: -250012.9631 | G42: -249912.9631 | H42: 100.5
D43: 40 | E43: 100005.3852 | F43: -350018.3483 | G43: -349918.3483 | H43: 100.5
D44: 41 | E44: 140007.5393 | F44: -490025.8876 | G44: -489925.8876 | H44: 100.5
D45: 42 | E45: 196010.555 | F45: -686036.4427 | G45: -685936.4427 | H45: 100.5
D46: 43 | E46: 274414.7771 | F46: -960451.2197 | G46: -960351.2197 | H46: 100.5
D47: 44 | E47: 384180.6879 | F47: -1344631.908 | G47: -1344531.908 | H47: 100.5
D48: 45 | E48: 537852.963 | F48: -1882484.871 | G48: -1882384.871 | H48: 100.5
D49: 46 | E49: 752994.1483 | F49: -2635479.019 | G49: -2635379.019 | H49: 100.5
D50: 47 | E50: 1054191.808 | F50: -3689670.826 | G50: -3689570.826 | H50: 100.5
D51: 48 | E51: 1475868.531 | F51: -5165539.357 | G51: -5165439.357 | H51: 100.5
D52: 49 | E52: 2066215.943 | F52: -7231755.3 | G52: -7231655.3 | H52: 100.5
D53: 50 | E53: 2892702.32 | F53: -10124457.62 | G53: -10124357.62 | H53: 100.5

Sheet Plan2

Sheet Plan3
